fUST/lending_fUST_20250723
["ID","MTS","AMOUNT","RATE_DAILY","PERIOD"]
[374339998,1753276259572,-460.0,0.00021095,2]
[374340000,1753276259581,-660.45,0.00021095,2]
[374340002,1753276259590,-460.0,0.00021095,2]
[374340004,1753276259600,-739.8,0.00021095,2]
[374340006,1753276259610,-460.0,0.00021095,2]
[374340008,1753276259620,-1210.15,0.00021095,2]
[374340010,1753276259630,-1075.16,0.00021095,2]
[374340012,1753276259640,-460.0,0.00021095,2]
[374340014,1753276259649,-460.0,0.00021095,2]
[374340016,1753276259658,-733.72,0.00021095,2]
[374340018,1753276259668,-4945.02,0.00021095,2]
[374340020,1753276259677,-460.0,0.00021095,2]
[374340022,1753276259687,-460.0,0.00021095,2]
[374340024,1753276259696,-460.0,0.00021095,2]
[374340026,1753276259707,-460.0,0.00021095,2]
[374340028,1753276259716,-460.0,0.00021095,2]
[374340030,1753276259725,-849.9,0.00021095,2]
[374340032,1753276259735,-460.0,0.00021095,2]
[374340034,1753276259744,-3080.49,0.00021095,2]
[374340036,1753276259754,-460.0,0.00021095,2]
[374340038,1753276259763,-494.89,0.00021095,2]
[374340040,1753276259780,-743.28,0.00021095,2]
[374340042,1753276259789,-3893.82,0.00021095,2]
[374340044,1753276259799,-633.21,0.00021095,2]
[374340046,1753276259809,-718.66,0.00021095,2]
[374340048,1753276259819,-460.0,0.00021095,2]
[374340050,1753276259828,-2569.44,0.00021095,2]
[374340052,1753276259838,-623.14,0.00021095,2]
[374340055,1753276259847,-460.0,0.00021095,2]
[374340057,1753276259857,-460.0,0.00021095,2]
[374340059,1753276259866,-702.02,0.00021095,2]
[374340061,1753276259876,-460.0,0.00021095,2]
[374340062,1753276259886,-460.0,0.00021095,2]
[374340065,1753276259896,-686.41,0.00021095,2]
[374340067,1753276259908,-1323.49,0.00021095,2]
[374340069,1753276259918,-460.0,0.00021095,2]
[374340071,1753276259927,-540.06,0.00021095,2]
[374340072,1753276259937,-460.0,0.00021095,2]
[374340074,1753276259947,-460.0,0.00021095,2]
[374340076,1753276259958,-14539.89,0.00021095,2]
[374340078,1753276259968,-369.58098645,0.00021095,2]
[374340080,1753276259977,-534.64,0.00021095,2]
[374340082,1753276259988,-460.0,0.00021095,2]
[374340084,1753276259997,-460.0,0.00021095,2]
[374340086,1753276260007,-151.0,0.000211,3]
[374340088,1753276260017,-151.0,0.000211,3]
[374340090,1753276260027,-2000.0,0.00021116,2]
[374340092,1753276260038,-476.41986753,0.00021187,2]
[374340094,1753276260048,-151.0,0.00021202,2]
[374340096,1753276260058,-151.0,0.00021202,2]
[374340098,1753276260068,-151.0,0.00021202,2]
[374340100,1753276260078,-151.0,0.00021202,2]
[374340102,1753276260087,-151.0,0.00021202,2]
[374340104,1753276260097,-151.0,0.00021202,2]
[374340106,1753276260107,-151.0,0.00021202,2]
[374340108,1753276260117,-3801.642,0.00021202,2]
[374340110,1753276260127,-151.0,0.00021202,2]
[374340112,1753276260137,-151.0,0.00021202,2]
[374340114,1753276260147,-151.0,0.00021202,2]
[374340116,1753276260157,-151.0,0.00021202,2]
[374340118,1753276260166,-151.0,0.00021202,2]
[374340128,1753276260258,-151.0,0.00021202,2]
[374340130,1753276260268,-151.0,0.00021202,2]
[374340132,1753276260278,-151.0,0.00021202,2]
[374340134,1753276260288,-13645.52412149,0.00021202,2]
[374340156,1753276260493,-11354.47587851,0.00021202,2]
[374340158,1753276260503,-151.0,0.00021202,2]
[374340160,1753276260512,-151.0,0.00021202,2]
[374340162,1753276260522,-152.71936777,0.00021202,2]
[374340164,1753276260531,-151.0,0.00021202,2]
[374340166,1753276260541,-151.0,0.00021202,2]
[374340168,1753276260551,-151.0,0.00021202,2]
[374340170,1753276260560,-151.0,0.00021202,2]
[374340172,1753276260570,-215.0738,0.00021202,2]
[374340174,1753276260579,-151.0,0.00021202,2]
[374340176,1753276260589,-500.0,0.00021202,2]
[374340178,1753276260599,-151.0,0.00021202,2]
[374340180,1753276260608,-151.98065924,0.00021202,2]
[374340182,1753276260619,-500.0,0.00021202,2]
[374340184,1753276260629,-151.0,0.00021202,2]
[374340185,1753276260639,-500.0,0.00021202,2]
[374340187,1753276260648,-151.0,0.00021202,2]
[374340190,1753276260658,-500.0,0.00021202,2]
[374340192,1753276260668,-151.0,0.00021202,2]
[374340194,1753276260678,-7237.33451009,0.00021202,2]
[374340195,1753276260687,-500.0,0.00021202,2]
[374340197,1753276260697,-151.0,0.00021202,2]
[374340199,1753276260708,-500.0,0.00021202,2]
[374340201,1753276260718,-151.0,0.00021202,2]
[374340203,1753276260727,-500.0,0.00021202,2]
[374340206,1753276260748,-151.0,0.00021202,2]
[374340209,1753276260760,-500.0,0.00021202,2]
[374340211,1753276260770,-151.0,0.00021202,2]
[374340212,1753276260780,-500.0,0.00021202,2]
[374340214,1753276260791,-151.0,0.00021202,2]
[374340215,1753276260801,-500.0,0.00021202,2]
[374340217,1753276260812,-500.0,0.00021202,2]
[374340220,1753276260822,-151.0,0.00021202,2]
[374340222,1753276260832,-151.0,0.00021202,2]
[374340224,1753276260842,-500.0,0.00021202,2]
[374340225,1753276260852,-500.0,0.00021202,2]
[374340228,1753276260862,-500.0,0.00021202,2]
[374340230,1753276260872,-500.0,0.00021202,2]
[374340232,1753276260882,-500.0,0.00021202,2]
[374340233,1753276260891,-500.0,0.00021202,2]
[374340234,1753276260906,-151.0,0.00021202,2]
[374340235,1753276260915,-151.0,0.00021202,2]
[374340236,1753276260925,-175.014685,0.00021202,2]
[374340237,1753276260935,-3432.7107726,0.00021256,2]
[374340238,1753276260945,-2500.0,0.00021364,2]
[374340240,1753276260955,-2500.0,0.00021364,2]
[374340243,1753276260965,-500.0,0.00021364,2]
[374340245,1753276260977,-517.05724765,0.00021364,2]
[374340247,1753276260987,-6770.1,0.00021369,2]
[374340249,1753276260996,-460.0,0.00021369,2]
[374340251,1753276261006,-460.0,0.00021369,2]
[374340253,1753276261015,-460.0,0.00021369,2]
[374340254,1753276261025,-460.0,0.00021369,2]
[374340257,1753276261035,-718.85,0.00021369,2]
[374340258,1753276261044,-460.0,0.00021369,2]
[374340261,1753276261054,-460.0,0.00021369,2]
[374340262,1753276261063,-460.0,0.00021369,2]
[374340264,1753276261073,-1759.05,0.00021369,2]
[374340266,1753276261083,-460.0,0.00021369,2]
[374340268,1753276261093,-460.0,0.00021369,2]
[374340271,1753276261103,-515.91,0.00021369,2]
[374340273,1753276261117,-460.0,0.00021369,2]
[374340275,1753276261127,-366.07535684,0.00021369,2]
[374340277,1753276261137,-460.0,0.00021369,2]
[374340279,1753276261147,-460.0,0.00021369,2]
[374340281,1753276261160,-460.0,0.00021369,2]
[374340283,1753276261169,-460.0,0.00021369,2]
[374340285,1753276261179,-308.17876309,0.00021369,2]
[374340287,1753276261189,-764.96,0.00021369,2]
[374340289,1753276261198,-710.55,0.00021369,2]
[374340291,1753276261210,-460.0,0.00021369,2]
[374340293,1753276261221,-460.0,0.00021369,2]
[374340295,1753276261231,-460.0,0.00021369,2]
[374340297,1753276261241,-571.91,0.00021369,2]
[374340299,1753276261251,-783.95,0.00021369,2]
[374340302,1753276261260,-460.0,0.00021369,2]
[374340304,1753276261270,-703.02,0.00021369,2]
[374340306,1753276261279,-460.0,0.00021369,2]
[374340308,1753276261289,-460.0,0.00021369,2]
[374340310,1753276261298,-460.0,0.00021369,2]
[374340312,1753276261308,-460.0,0.00021369,2]
[374340314,1753276261319,-460.0,0.00021369,2]
[374340316,1753276261328,-4239.08,0.00021369,2]
[374340318,1753276261338,-518.96,0.00021369,2]
[374340320,1753276261348,-460.0,0.00021369,2]
[374340322,1753276261358,-460.0,0.00021369,2]
[374340324,1753276261368,-460.0,0.00021369,2]
[374340326,1753276261378,-1446.04,0.00021369,2]
[374340328,1753276261391,-460.0,0.00021369,2]
[374340330,1753276261402,-460.0,0.00021369,2]
[374340332,1753276261412,-519.04,0.00021369,2]
[374340335,1753276261423,-776.72,0.00021369,2]
[374340337,1753276261433,-460.0,0.00021369,2]
[374340339,1753276261444,-660.45,0.00021369,2]
[374340341,1753276261454,-460.0,0.00021369,2]
[374340343,1753276261466,-739.8,0.00021369,2]
[374340345,1753276261476,-460.0,0.00021369,2]
[374340347,1753276261486,-1210.15,0.00021369,2]
[374340349,1753276261495,-1075.16,0.00021369,2]
[374340366,1753276261644,-460.0,0.00021369,2]
[374340368,1753276261655,-460.0,0.00021369,2]
[374340370,1753276261664,-733.72,0.00021369,2]
[374340372,1753276261674,-4945.02,0.00021369,2]
[374340374,1753276261684,-460.0,0.00021369,2]
[374340376,1753276261693,-290.85998978,0.00021369,2]
[374340378,1753276261702,-460.0,0.00021369,2]
[374340380,1753276261713,-460.0,0.00021369,2]
[374340382,1753276261723,-460.0,0.00021369,2]
[374340384,1753276261733,-849.9,0.00021369,2]
[374340386,1753276261743,-460.0,0.00021369,2]
[374340388,1753276261753,-3080.49,0.00021369,2]
[374340390,1753276261762,-460.0,0.00021369,2]
[374340392,1753276261772,-494.89,0.00021369,2]
[374340394,1753276261782,-743.28,0.00021369,2]
[374340396,1753276261791,-3893.82,0.00021369,2]
[374340398,1753276261803,-633.21,0.00021369,2]
[374340400,1753276261812,-718.66,0.00021369,2]
[374340402,1753276261821,-326.96769428,0.00021369,2]
[374340404,1753276261831,-2569.44,0.00021369,2]
[374340406,1753276261841,-623.14,0.00021369,2]
[374340408,1753276261851,-460.0,0.00021369,2]
[374340410,1753276261860,-460.0,0.00021369,2]
[374340412,1753276261869,-702.02,0.00021369,2]
[374340414,1753276261879,-460.0,0.00021369,2]
[374340416,1753276261888,-686.41,0.00021369,2]
[374340418,1753276261898,-151.426985,0.00021369,2]
[374340420,1753276261911,-1323.49,0.00021369,2]
[374340422,1753276261921,-460.0,0.00021369,2]
[374340424,1753276261930,-540.06,0.00021369,2]
[374340426,1753276261940,-460.0,0.00021369,2]
[374340428,1753276261950,-460.0,0.00021369,2]
[374340430,1753276261961,-14539.89,0.00021369,2]
[374340432,1753276261970,-283.1817611,0.00021369,2]
[374340434,1753276261980,-460.0,0.00021369,2]
[374340436,1753276261989,-792.20608088,0.0002143,2]
[374340438,1753276262000,-5284.9,0.00021435,5]
[374340440,1753276262010,-460.0,0.00021547,2]
[374340442,1753276262019,-151.0,0.000216,3]
[374340444,1753276262030,-3432.7107726,0.00021613,2]
[374340446,1753276262040,-2000.0,0.00021616,2]
[374340448,1753276262049,-174.76956251,0.00021616,2]
[374340451,1753276262059,-1506.76194603,0.00021616,2]
[374340453,1753276262069,-630.13669362,0.00021616,2]
[374340455,1753276262078,-1169.04434766,0.00021616,2]
[374340457,1753276262088,-626.30752255,0.00021616,2]
[374340459,1753276262097,-524.31518237,0.00021616,2]
[374340461,1753276262107,-526.56501023,0.00021616,2]
[374340463,1753276262117,-1995.16783004,0.00021616,2]
[374340465,1753276262127,-2000.0,0.00021616,2]
[374340467,1753276262136,-689.96740107,0.00021616,2]
[374340469,1753276262147,-6770.1,0.00021643,2]
[374340471,1753276262156,-519.30453808,0.00021643,2]
[374340473,1753276262166,-460.0,0.00021643,2]
[374340475,1753276262176,-460.0,0.00021643,2]
[374340477,1753276262186,-718.85,0.00021643,2]
[374340479,1753276262195,-460.0,0.00021643,2]
[374340481,1753276262204,-460.0,0.00021643,2]
[374340483,1753276262216,-460.0,0.00021643,2]
[374340485,1753276262225,-1759.05,0.00021643,2]
[374340486,1753276262235,-460.0,0.00021643,2]
[374340489,1753276262245,-460.0,0.00021643,2]
[374340491,1753276262254,-515.91,0.00021643,2]
[374340492,1753276262264,-460.0,0.00021643,2]
[374340494,1753276262274,-460.0,0.00021643,2]
[374340497,1753276262284,-460.0,0.00021643,2]
[374340498,1753276262293,-460.0,0.00021643,2]
[374340500,1753276262303,-764.96,0.00021643,2]
[374340502,1753276262312,-710.55,0.00021643,2]
[374340504,1753276262321,-460.0,0.00021643,2]
[374340506,1753276262331,-460.0,0.00021643,2]
[374340508,1753276262340,-460.0,0.00021643,2]
[374340510,1753276262350,-571.91,0.00021643,2]
[374340512,1753276262360,-783.95,0.00021643,2]
[374340514,1753276262370,-460.0,0.00021643,2]
[374340516,1753276262380,-703.02,0.00021643,2]
[374340519,1753276262390,-460.0,0.00021643,2]
[374340520,1753276262400,-274.63969605,0.00021643,2]
[374340523,1753276262410,-206.14702574,0.00021643,2]
[374340525,1753276262420,-460.0,0.00021643,2]
[374340527,1753276262431,-460.0,0.00021643,2]
[374340529,1753276262441,-4239.08,0.00021643,2]
[374340531,1753276262451,-518.96,0.00021643,2]
[374340533,1753276262462,-460.0,0.00021643,2]
[374340535,1753276262475,-293.8,0.00021643,2]
[374340537,1753276262484,-460.0,0.00021643,2]
[374340539,1753276262494,-1446.04,0.00021643,2]
[374340541,1753276262503,-460.0,0.00021643,2]
[374340543,1753276262519,-519.04,0.00021643,2]
[374340545,1753276262530,-776.72,0.00021643,2]
[374340547,1753276262540,-460.0,0.00021643,2]
[374340549,1753276262549,-660.45,0.00021643,2]
[374340551,1753276262558,-460.0,0.00021643,2]
[374340553,1753276262569,-739.8,0.00021643,2]
[374340555,1753276262579,-460.0,0.00021643,2]
[374340557,1753276262589,-1210.15,0.00021643,2]
[374340559,1753276262598,-1075.16,0.00021643,2]
[374340561,1753276262608,-460.0,0.00021643,2]
[374340563,1753276262618,-460.0,0.00021643,2]
[374340565,1753276262629,-733.72,0.00021643,2]
[374340568,1753276262639,-4945.02,0.00021643,2]
[374340570,1753276262649,-460.0,0.00021643,2]
[374340572,1753276262659,-460.0,0.00021643,2]
[374340574,1753276262669,-460.0,0.00021643,2]
[374340575,1753276262679,-849.9,0.00021643,2]
[374340578,1753276262688,-460.0,0.00021643,2]
[374340580,1753276262697,-3080.49,0.00021643,2]
[374340582,1753276262707,-460.0,0.00021643,2]
[374340584,1753276262718,-494.89,0.00021643,2]
[374340586,1753276262728,-743.28,0.00021643,2]
[374340588,1753276262738,-3893.82,0.00021643,2]
[374340590,1753276262748,-633.21,0.00021643,2]
[374340592,1753276262757,-718.66,0.00021643,2]
[374340594,1753276262767,-2569.44,0.00021643,2]
[374340596,1753276262777,-623.14,0.00021643,2]
[374340598,1753276262787,-460.0,0.00021643,2]
[374340600,1753276262797,-460.0,0.00021643,2]
[374340602,1753276262807,-702.02,0.00021643,2]
[374340604,1753276262817,-460.0,0.00021643,2]
[374340606,1753276262827,-686.41,0.00021643,2]
[374340608,1753276262837,-1323.49,0.00021643,2]
[374340610,1753276262847,-443.46108589,0.00021643,2]
[374340612,1753276262857,-540.06,0.00021643,2]
[374340614,1753276262866,-460.0,0.00021643,2]
[374340616,1753276262876,-14539.89,0.00021643,2]
[374340618,1753276262885,-1058.059424,0.00021643,2]
[374340620,1753276262895,-1058.059424,0.00021643,2]
[374340622,1753276262906,-460.0,0.00021643,2]
[374340624,1753276262916,-1500.0,0.00021664,2]
[374340626,1753276262926,-151.0,0.0002175,2]
[374340636,1753276263014,-25000.0,0.0002175,2]
[374340638,1753276263025,-3432.7107726,0.00021751,2]
[374340640,1753276263035,-5284.9,0.00021768,5]
[374340642,1753276263046,-800.0,0.00021812,2]
[374340644,1753276263056,-600.318318,0.00021859,2]
[374340647,1753276263066,-429.674968,0.00021859,2]
[374340649,1753276263077,-151.0,0.00021902,2]
[374340651,1753276263087,-151.254061,0.00021902,2]
[374340653,1753276263101,-151.0,0.00021902,2]
[374340655,1753276263114,-151.0,0.00021902,2]
[374340657,1753276263125,-151.0,0.00021902,2]
[374340659,1753276263137,-405.712595,0.00021902,2]
[374340661,1753276263157,-405.712595,0.00021902,2]
[374340663,1753276263167,-3000.0,0.00021912,2]
[374340665,1753276263177,-622.75820574,0.00021912,2]
[374340667,1753276263188,-6770.1,0.00021917,2]
[374340669,1753276263198,-460.0,0.00021917,2]
[374340671,1753276263208,-460.0,0.00021917,2]
[374340673,1753276263221,-718.85,0.00021917,2]
[374340675,1753276263232,-460.0,0.00021917,2]
[374340677,1753276263243,-460.0,0.00021917,2]
[374340679,1753276263254,-460.0,0.00021917,2]
[374340681,1753276263274,-500.0,0.00021917,2]
[374340683,1753276263288,-500.0,0.00021917,2]
[374340685,1753276263298,-500.0,0.00021917,2]
[374340687,1753276263308,-500.0,0.00021917,2]
[374340689,1753276263318,-500.0,0.00021917,2]
[374340691,1753276263328,-500.0,0.00021917,2]
[374340693,1753276263338,-500.0,0.00021917,2]
[374340695,1753276263348,-500.0,0.00021917,2]
[374340697,1753276263360,-500.0,0.00021917,2]
[374340699,1753276263373,-500.0,0.00021917,2]
[374340701,1753276263384,-500.0,0.00021917,2]
[374340703,1753276263394,-1759.05,0.00021917,2]
[374340705,1753276263404,-460.0,0.00021917,2]
[374340707,1753276263414,-460.0,0.00021917,2]
[374340709,1753276263424,-515.91,0.00021917,2]
[374340711,1753276263434,-460.0,0.00021917,2]
[374340713,1753276263445,-460.0,0.00021917,2]
[374340715,1753276263456,-460.0,0.00021917,2]
[374340717,1753276263469,-460.0,0.00021917,2]
[374340719,1753276263480,-764.96,0.00021917,2]
[374340721,1753276263490,-710.55,0.00021917,2]
[374340723,1753276263500,-460.0,0.00021917,2]
[374340725,1753276263510,-460.0,0.00021917,2]
[374340727,1753276263521,-460.0,0.00021917,2]
[374340729,1753276263531,-571.91,0.00021917,2]
[374340731,1753276263541,-783.95,0.00021917,2]
[374340734,1753276263552,-460.0,0.00021917,2]
[374340736,1753276263563,-703.02,0.00021917,2]
[374340737,1753276263572,-460.0,0.00021917,2]
[374340739,1753276263583,-460.0,0.00021917,2]
[374340742,1753276263593,-460.0,0.00021917,2]
[374340744,1753276263605,-4239.08,0.00021917,2]
[374340746,1753276263615,-518.96,0.00021917,2]
[374340748,1753276263625,-460.0,0.00021917,2]
[374340749,1753276263634,-1446.04,0.00021917,2]
[374340751,1753276263644,-460.0,0.00021917,2]
[374340753,1753276263654,-519.04,0.00021917,2]
[374340756,1753276263665,-776.72,0.00021917,2]
[374340758,1753276263680,-460.0,0.00021917,2]
[374340762,1753276263703,-660.45,0.00021917,2]
[374340764,1753276263724,-460.0,0.00021917,2]
[374340768,1753276263745,-460.0,0.00021917,2]
[374340770,1753276263767,-739.8,0.00021917,2]
[374340773,1753276263786,-1210.15,0.00021917,2]
[374340776,1753276263804,-1075.16,0.00021917,2]
[374340779,1753276263822,-460.0,0.00021917,2]
[374340782,1753276263838,-460.0,0.00021917,2]
[374340784,1753276263857,-733.72,0.00021917,2]
[374340788,1753276263878,-4945.02,0.00021917,2]
[374340791,1753276263896,-460.0,0.00021917,2]
[374340793,1753276263914,-175.42131808,0.00021917,2]
[374340796,1753276263934,-460.0,0.00021917,2]
[374340799,1753276263953,-849.9,0.00021917,2]
[374340801,1753276263970,-460.0,0.00021917,2]
[374340804,1753276263985,-3080.49,0.00021917,2]
[374340806,1753276264005,-460.0,0.00021917,2]
[374340809,1753276264022,-494.89,0.00021917,2]
[374340812,1753276264039,-743.28,0.00021917,2]
[374340814,1753276264055,-3893.82,0.00021917,2]
[374340817,1753276264071,-633.21,0.00021917,2]
[374340820,1753276264088,-718.66,0.00021917,2]
[374340822,1753276264106,-2569.44,0.00021917,2]
[374340825,1753276264124,-623.14,0.00021917,2]
[374340828,1753276264142,-460.0,0.00021917,2]
[374340830,1753276264159,-702.02,0.00021917,2]
[374340833,1753276264175,-686.41,0.00021917,2]
[374340835,1753276264193,-1323.49,0.00021917,2]
[374340838,1753276264210,-540.06,0.00021917,2]
[374340841,1753276264227,-460.0,0.00021917,2]
[374340843,1753276264243,-14539.89,0.00021917,2]
[374340846,1753276264260,-460.0,0.00021917,2]
[374340848,1753276264278,-1322.9240316,0.00021918,7]
[374340851,1753276264291,-153.0,0.00021918,2]
[374340853,1753276264301,-153.0,0.00021918,2]
[374340855,1753276264311,-153.0,0.00021918,2]
[374340857,1753276264320,-153.0,0.00021918,2]
[374340859,1753276264331,-153.0,0.00021918,2]
[374340861,1753276264341,-153.0,0.00021918,2]
[374340862,1753276264351,-153.0,0.00021918,2]
[374340864,1753276264361,-153.0,0.00021918,2]
[374340866,1753276264370,-153.0,0.00021918,2]
[374340868,1753276264380,-153.0,0.00021918,2]
[374340870,1753276264390,-153.0,0.00021918,2]
[374340872,1753276264400,-153.0,0.00021918,2]
[374340875,1753276264410,-153.0,0.00021918,2]
[374340876,1753276264420,-153.0,0.00021918,2]
[374340879,1753276264430,-153.0,0.00021918,2]
[374340881,1753276264440,-153.0,0.00021918,2]
[374340882,1753276264450,-153.0,0.00021918,2]
[374340885,1753276264462,-153.0,0.00021918,2]
[374340887,1753276264472,-153.0,0.00021918,2]
[374340888,1753276264482,-153.0,0.00021918,2]
[374340890,1753276264492,-153.0,0.00021918,2]
[374340892,1753276264502,-153.0,0.00021918,2]
[374340894,1753276264512,-153.0,0.00021918,2]
[374340896,1753276264522,-153.0,0.00021918,2]
[374340898,1753276264531,-153.0,0.00021918,2]
[374340900,1753276264542,-153.0,0.00021918,2]
[374340926,1753276264806,-153.0,0.00021918,2]
[374340929,1753276264824,-153.0,0.00021918,2]
[374340931,1753276264835,-153.0,0.00021918,2]
[374340933,1753276264846,-153.0,0.00021918,2]
[374340935,1753276264856,-153.0,0.00021918,2]
[374340937,1753276264866,-153.0,0.00021918,2]
[374340939,1753276264876,-153.0,0.00021918,2]
[374340941,1753276264887,-153.0,0.00021918,2]
[374340943,1753276264899,-153.0,0.00021918,2]
[374340945,1753276264913,-153.0,0.00021918,2]
[374340947,1753276264924,-153.0,0.00021918,2]
[374340949,1753276264934,-153.0,0.00021918,2]
[374340951,1753276264944,-153.0,0.00021918,2]
[374340953,1753276264955,-153.0,0.00021918,2]
[374340955,1753276264970,-153.0,0.00021918,2]
[374340957,1753276264980,-153.0,0.00021918,2]
[374340959,1753276264990,-153.0,0.00021918,2]
[374340961,1753276264999,-153.0,0.00021918,2]
[374340963,1753276265010,-153.0,0.00021918,2]
[374340965,1753276265019,-153.0,0.00021918,2]
[374340967,1753276265028,-153.0,0.00021918,2]
[374340969,1753276265038,-153.0,0.00021918,2]
[374340971,1753276265047,-153.0,0.00021918,2]
[374340973,1753276265056,-153.0,0.00021918,2]
[374340975,1753276265066,-153.0,0.00021918,2]
[374340977,1753276265075,-153.0,0.00021918,2]
[374340979,1753276265085,-153.0,0.00021918,2]
[374340981,1753276265094,-153.0,0.00021918,2]
[374340983,1753276265104,-153.0,0.00021918,2]
[374340985,1753276265113,-153.0,0.00021918,2]
[374340987,1753276265123,-153.0,0.00021918,2]
[374340989,1753276265132,-153.0,0.00021918,2]
[374340991,1753276265141,-153.0,0.00021918,2]
[374340993,1753276265151,-153.0,0.00021918,2]
[374340995,1753276265160,-153.0,0.00021918,2]
[374340997,1753276265170,-153.0,0.00021918,2]
[374340999,1753276265178,-153.0,0.00021918,2]
[374341001,1753276265188,-153.0,0.00021918,2]
[374341003,1753276265197,-153.0,0.00021918,2]
[374341005,1753276265207,-153.0,0.00021918,2]
[374341007,1753276265221,-153.0,0.00021918,2]
[374341009,1753276265230,-153.0,0.00021918,2]
[374341011,1753276265240,-153.0,0.00021918,2]
[374341012,1753276265249,-153.0,0.00021918,2]
[374341013,1753276265258,-153.0,0.00021918,2]
[374341014,1753276265267,-153.0,0.00021918,2]
[374341015,1753276265276,-153.0,0.00021918,2]
[374341016,1753276265286,-153.0,0.00021918,2]
[374341017,1753276265295,-153.0,0.00021918,2]
[374341018,1753276265304,-153.0,0.00021918,2]
[374341019,1753276265314,-153.0,0.00021918,2]
[374341020,1753276265323,-153.0,0.00021918,2]
[374341021,1753276265332,-153.0,0.00021918,2]
[374341022,1753276265342,-153.0,0.00021918,2]
[374341023,1753276265351,-153.0,0.00021918,2]
[374341024,1753276265361,-153.0,0.00021918,2]
[374341026,1753276265370,-153.0,0.00021918,2]
[374341028,1753276265379,-153.0,0.00021918,2]
[374341030,1753276265389,-153.0,0.00021918,2]
[374341032,1753276265398,-153.0,0.00021918,2]
[374341034,1753276265407,-153.0,0.00021918,2]
[374341036,1753276265416,-153.0,0.00021918,2]
[374341038,1753276265425,-153.0,0.00021918,2]
[374341039,1753276265434,-153.0,0.00021918,2]
[374341041,1753276265444,-153.0,0.00021918,2]
[374341043,1753276265453,-153.0,0.00021918,2]
[374341045,1753276265466,-153.0,0.00021918,2]
[374341047,1753276265475,-153.0,0.00021918,2]
[374341049,1753276265485,-153.0,0.00021918,2]
[374341051,1753276265494,-153.0,0.00021918,2]
[374341053,1753276265503,-153.0,0.00021918,2]
[374341055,1753276265513,-153.0,0.00021918,2]
[374341057,1753276265522,-153.0,0.00021918,2]
[374341059,1753276265532,-153.0,0.00021918,2]
[374341061,1753276265542,-153.0,0.00021918,2]
[374341063,1753276265552,-153.0,0.00021918,2]
[374341065,1753276265561,-153.0,0.00021918,2]
[374341067,1753276265571,-153.0,0.00021918,2]
[374341068,1753276265580,-153.0,0.00021918,2]
[374341070,1753276265589,-153.0,0.00021918,2]
[374341072,1753276265599,-153.0,0.00021918,2]
[374341074,1753276265608,-153.0,0.00021918,2]
[374341076,1753276265617,-153.0,0.00021918,2]
[374341078,1753276265627,-150.0,0.00021918,2]
[374341080,1753276265639,-156.13,0.0002192,4]
[374341082,1753276265648,-170.84,0.0002192,4]